[Event "Titled Tuesday Blitz July 25 Late 2023"]
[White "Donchenko, Alexander"]
[Black "Andreikin, Dmitry"]
[WhiteFideId "24603295"]
[BlackFideId "4158814"]
[WhiteElo "2825"]
[BlackElo "3029"]
[Result "0-1"]
[Round "4"]
[TimeControl "180+2"]
[Date "2023.07.25"]
[WhiteClock "0:00:55"]
[BlackClock "0:01:31"]
[Board "8"]

1. Nf3 {[%clk 0:03:00]}  b5 {[%clk 0:02:59]} 2. e3 {[%clk 0:02:59]}  a6 {[%clk 0:02:59]} 3. d4 {[%clk 0:02:56]}  Nf6 {[%clk 0:02:58]} 4. Bd3 {[%clk 0:02:57]}  Bb7 {[%clk 0:02:58]} 5. O-O {[%clk 0:02:56]}  e6 {[%clk 0:02:59]} 6. Qe2 {[%clk 0:02:56]}  c5 {[%clk 0:02:58]} 7. c3 {[%clk 0:02:55]}  d5 {[%clk 0:02:57]} 8. a4 {[%clk 0:02:54]}  c4 {[%clk 0:02:48]} 9. Bc2 {[%clk 0:02:54]}  Nbd7 {[%clk 0:02:48]} 10. Nbd2 {[%clk 0:02:52]}  Be7 {[%clk 0:02:44]} 11. e4 {[%clk 0:02:51]}  dxe4 {[%clk 0:02:44]} 12. Nxe4 {[%clk 0:02:52]}  O-O {[%clk 0:02:45]} 13. Bf4 {[%clk 0:02:47]}  Nxe4 {[%clk 0:02:41]} 14. Bxe4 {[%clk 0:02:48]}  Bxe4 {[%clk 0:02:42]} 15. Qxe4 {[%clk 0:02:48]}  Nf6 {[%clk 0:02:42]} 16. Qe2 {[%clk 0:02:47]}  Nd5 {[%clk 0:02:42]} 17. Bg3 {[%clk 0:02:47]}  Qb6 {[%clk 0:02:39]} 18. Ne5 {[%clk 0:02:45]}  Qb7 {[%clk 0:02:38]} 19. h4 {[%clk 0:02:39]}  Rfc8 {[%clk 0:02:37]} 20. axb5 {[%clk 0:02:24]}  axb5 {[%clk 0:02:37]} 21. Qf3 {[%clk 0:02:22]}  Bf6 {[%clk 0:02:31]} 22. Ng4 {[%clk 0:02:15]}  Rxa1 {[%clk 0:02:24]} 23. Rxa1 {[%clk 0:02:14]}  Ra8 {[%clk 0:02:24]} 24. Nxf6+ {[%clk 0:01:55]}  gxf6 {[%clk 0:02:24]} 25. Re1 {[%clk 0:01:48]}  Kf8 {[%clk 0:02:04]} 26. Qh5 {[%clk 0:01:32]}  Ke7 {[%clk 0:02:03]} 27. Qxh7 {[%clk 0:01:28]}  b4 {[%clk 0:01:59]} 28. h5 {[%clk 0:01:16]}  bxc3 {[%clk 0:01:51]} 29. bxc3 {[%clk 0:01:17]}  Nxc3 {[%clk 0:01:52]} 30. h6 {[%clk 0:01:17]}  Qd5 {[%clk 0:01:40]} 31. Qg7 {[%clk 0:01:03]}  Ne2+ {[%clk 0:01:32]} 32. Kh2 {[%clk 0:00:55]}  Qh5+ {[%clk 0:01:31]} 0-1


[Site "https://www.chess.com"]

[Event "Titled Tuesday Blitz July 25 Late 2023"]
[White "Duda, Jan-Krzysztof"]
[Black "Kushko, Dmitriy"]
[WhiteFideId "1170546"]
[BlackFideId "14162261"]
[WhiteElo "3028"]
[BlackElo "2824"]
[Result "1-0"]
[Round "4"]
[TimeControl "180+2"]
[Date "2023.07.25"]
[WhiteClock "0:01:13"]
[BlackClock "0:00:00"]
[Board "9"]

1. Nf3 {[%clk 0:03:00]}  Nf6 {[%clk 0:02:59]} 2. g3 {[%clk 0:03:01]}  g6 {[%clk 0:02:59]} 3. b4 {[%clk 0:03:01]}  a5 {[%clk 0:02:47]} 4. b5 {[%clk 0:03:01]}  b6 {[%clk 0:02:47]} 5. Bg2 {[%clk 0:03:00]}  Bb7 {[%clk 0:02:48]} 6. Bb2 {[%clk 0:03:00]}  Bg7 {[%clk 0:02:48]} 7. c4 {[%clk 0:03:01]}  O-O {[%clk 0:02:48]} 8. O-O {[%clk 0:03:01]}  d6 {[%clk 0:02:47]} 9. d4 {[%clk 0:02:54]}  Nbd7 {[%clk 0:02:46]} 10. Nc3 {[%clk 0:02:54]}  Ne4 {[%clk 0:02:45]} 11. Na4 {[%clk 0:02:48]}  Rb8 {[%clk 0:02:38]} 12. Qc2 {[%clk 0:02:47]}  e6 {[%clk 0:02:37]} 13. Rad1 {[%clk 0:02:41]}  Qe7 {[%clk 0:02:36]} 14. Ba3 {[%clk 0:02:32]}  f5 {[%clk 0:02:27]} 15. Nd2 {[%clk 0:02:08]}  Nxd2 {[%clk 0:02:08]} 16. Rxd2 {[%clk 0:02:09]}  Bxg2 {[%clk 0:02:08]} 17. Kxg2 {[%clk 0:02:10]}  e5 {[%clk 0:02:06]} 18. c5 {[%clk 0:02:01]}  exd4 {[%clk 0:01:32]} 19. cxd6 {[%clk 0:01:58]}  cxd6 {[%clk 0:01:33]} 20. Bb2 {[%clk 0:01:56]}  Nc5 {[%clk 0:01:22]} 21. Bxd4 {[%clk 0:01:52]}  f4 {[%clk 0:01:08]} 22. Qc4+ {[%clk 0:01:45]}  Qf7 {[%clk 0:00:33]} 23. Qxf7+ {[%clk 0:01:39]}  Rxf7 {[%clk 0:00:34]} 24. Nc3 {[%clk 0:01:38]}  fxg3 {[%clk 0:00:32]} 25. Bxg7 {[%clk 0:01:33]}  Kxg7 {[%clk 0:00:29]} 26. hxg3 {[%clk 0:01:33]}  Rd7 {[%clk 0:00:21]} 27. Rfd1 {[%clk 0:01:32]}  Nb7 {[%clk 0:00:16]} 28. Nd5 {[%clk 0:01:14]}  Nc5 {[%clk 0:00:16]} 29. Ne3 {[%clk 0:01:14]}  Nb7 {[%clk 0:00:15]} 30. Nc4 {[%clk 0:01:14]}  Rc7 {[%clk 0:00:05]} 31. Nxb6 {[%clk 0:01:13]}  Nc5 {[%clk 0:00:00]} 32. Rxd6 {[%clk 0:01:13]} 1-0


[Site "https://www.chess.com"]

[Event "Titled Tuesday Blitz July 25 Late 2023"]
[White "Talibov, Shiroghlan"]
[Black "Kevlishvili, Robby"]
[WhiteFideId "13429078"]
[BlackFideId "1040634"]
[WhiteElo "2812"]
[BlackElo "3014"]
[Result "1-0"]
[Round "4"]
[TimeControl "180+2"]
[Date "2023.07.25"]
[WhiteClock "0:01:40"]
[BlackClock "0:00:57"]
[Board "10"]

1. e4 {[%clk 0:03:00]}  c5 {[%clk 0:02:59]} 2. Nf3 {[%clk 0:02:58]}  d6 {[%clk 0:02:53]} 3. Nc3 {[%clk 0:02:54]}  Nf6 {[%clk 0:02:53]} 4. h3 {[%clk 0:02:54]}  g6 {[%clk 0:02:49]} 5. g4 {[%clk 0:02:51]}  Bg7 {[%clk 0:02:49]} 6. g5 {[%clk 0:02:46]}  Nfd7 {[%clk 0:02:49]} 7. d4 {[%clk 0:02:46]}  cxd4 {[%clk 0:02:41]} 8. Nxd4 {[%clk 0:02:47]}  Nc6 {[%clk 0:02:41]} 9. Be3 {[%clk 0:02:45]}  O-O {[%clk 0:02:40]} 10. h4 {[%clk 0:02:45]}  Nde5 {[%clk 0:02:38]} 11. Be2 {[%clk 0:02:44]}  Be6 {[%clk 0:02:32]} 12. f4 {[%clk 0:02:44]}  Nd7 {[%clk 0:02:03]} 13. Nxe6 {[%clk 0:02:39]}  fxe6 {[%clk 0:02:03]} 14. Bc4 {[%clk 0:02:40]}  d5 {[%clk 0:01:48]} 15. exd5 {[%clk 0:02:39]}  Na5 {[%clk 0:01:49]} 16. Bb5 {[%clk 0:02:26]}  e5 {[%clk 0:01:44]} 17. Qg4 {[%clk 0:02:20]}  Nb6 {[%clk 0:01:31]} 18. fxe5 {[%clk 0:02:08]}  Rc8 {[%clk 0:01:20]} 19. Qe6+ {[%clk 0:01:58]}  Rf7 {[%clk 0:00:59]} 20. Rf1 {[%clk 0:01:52]}  Qf8 {[%clk 0:00:57]} 21. Bxb6 {[%clk 0:01:40]} 1-0


[Site "https://www.chess.com"]

[Event "Titled Tuesday Blitz July 25 Late 2023"]
[White "Pranav, V"]
[Black "Khanin, Semen"]
[WhiteFideId "25060783"]
[BlackFideId "4111990"]
[WhiteElo "3013"]
[BlackElo "2810"]
[Result "1-0"]
[Round "4"]
[TimeControl "180+2"]
[Date "2023.07.25"]
[WhiteClock "0:00:08"]
[BlackClock "0:00:00"]
[Board "11"]

1. e4 {[%clk 0:03:00]}  e5 {[%clk 0:02:59]} 2. Nf3 {[%clk 0:02:59]}  Nc6 {[%clk 0:02:59]} 3. Bb5 {[%clk 0:02:59]}  a6 {[%clk 0:02:59]} 4. Ba4 {[%clk 0:02:58]}  Nf6 {[%clk 0:02:59]} 5. O-O {[%clk 0:02:58]}  Be7 {[%clk 0:02:59]} 6. d3 {[%clk 0:02:58]}  b5 {[%clk 0:02:59]} 7. Bb3 {[%clk 0:02:58]}  O-O {[%clk 0:02:59]} 8. Nc3 {[%clk 0:02:58]}  d6 {[%clk 0:02:56]} 9. a3 {[%clk 0:02:58]}  Bb7 {[%clk 0:02:55]} 10. Bd2 {[%clk 0:02:56]}  Nb8 {[%clk 0:02:48]} 11. h3 {[%clk 0:02:49]}  Nbd7 {[%clk 0:02:47]} 12. Ba2 {[%clk 0:02:49]}  h6 {[%clk 0:02:44]} 13. Re1 {[%clk 0:02:48]}  Re8 {[%clk 0:02:44]} 14. Qe2 {[%clk 0:02:28]}  Bf8 {[%clk 0:02:42]} 15. Rad1 {[%clk 0:02:28]}  c5 {[%clk 0:02:29]} 16. Nh4 {[%clk 0:02:27]}  b4 {[%clk 0:01:30]} 17. Nb1 {[%clk 0:02:24]}  d5 {[%clk 0:01:26]} 18. exd5 {[%clk 0:01:49]}  Nxd5 {[%clk 0:01:24]} 19. Nf5 {[%clk 0:01:48]}  Qf6 {[%clk 0:01:17]} 20. Qg4 {[%clk 0:01:41]}  Qg6 {[%clk 0:00:28]} 21. Nxh6+ {[%clk 0:01:21]}  gxh6 {[%clk 0:00:28]} 22. Qxd7 {[%clk 0:01:21]}  Bc6 {[%clk 0:00:27]} 23. Qg4 {[%clk 0:01:20]}  Kh7 {[%clk 0:00:22]} 24. c3 {[%clk 0:01:04]}  f5 {[%clk 0:00:16]} 25. Qxg6+ {[%clk 0:00:55]}  Kxg6 {[%clk 0:00:17]} 26. Rc1 {[%clk 0:00:52]}  bxa3 {[%clk 0:00:13]} 27. Nxa3 {[%clk 0:00:52]}  Bg7 {[%clk 0:00:11]} 28. Nc4 {[%clk 0:00:52]}  Rad8 {[%clk 0:00:11]} 29. Ra1 {[%clk 0:00:51]}  Bb5 {[%clk 0:00:11]} 30. Bb3 {[%clk 0:00:49]}  Nc7 {[%clk 0:00:10]} 31. Be3 {[%clk 0:00:42]}  Rxd3 {[%clk 0:00:09]} 32. Bxc5 {[%clk 0:00:42]}  e4 {[%clk 0:00:08]} 33. Nd6 {[%clk 0:00:36]}  Re5 {[%clk 0:00:08]} 34. Nxb5 {[%clk 0:00:29]}  axb5 {[%clk 0:00:09]} 35. Bd4 {[%clk 0:00:28]}  Re7 {[%clk 0:00:09]} 36. Be3 {[%clk 0:00:22]}  Nd5 {[%clk 0:00:08]} 37. Bxd5 {[%clk 0:00:21]}  Rxd5 {[%clk 0:00:09]} 38. Ra6+ {[%clk 0:00:21]}  Kh7 {[%clk 0:00:09]} 39. g3 {[%clk 0:00:22]}  b4 {[%clk 0:00:07]} 40. cxb4 {[%clk 0:00:22]}  Rb7 {[%clk 0:00:07]} 41. Bc5 {[%clk 0:00:18]}  Bxb2 {[%clk 0:00:07]} 42. Kg2 {[%clk 0:00:12]}  Bc3 {[%clk 0:00:06]} 43. Rc1 {[%clk 0:00:10]}  Bd2 {[%clk 0:00:04]} 44. Rc2 {[%clk 0:00:10]}  Kg7 {[%clk 0:00:03]} 45. b5 {[%clk 0:00:07]}  Rxb5 {[%clk 0:00:02]} 46. Bd4+ {[%clk 0:00:08]}  Rxd4 {[%clk 0:00:00]} 47. Rc7+ {[%clk 0:00:08]} 1-0


[Site "https://www.chess.com"]

[Event "Titled Tuesday Blitz July 25 Late 2023"]
[White "Riehle, Marco"]
[Black "Martinez Alcantara, Jose Eduardo"]
[WhiteFideId "12904392"]
[BlackFideId "3805662"]
[WhiteElo "2805"]
[BlackElo "3000"]
[Result "0-1"]
[Round "4"]
[TimeControl "180+2"]
[Date "2023.07.25"]
[WhiteClock "0:01:04"]
[BlackClock "0:01:12"]
[Board "12"]

1. e4 {[%clk 0:02:59]}  c5 {[%clk 0:03:00]} 2. a3 {[%clk 0:03:00]}  e6 {[%clk 0:02:58]} 3. b4 {[%clk 0:03:00]}  d5 {[%clk 0:02:58]} 4. exd5 {[%clk 0:03:00]}  exd5 {[%clk 0:02:57]} 5. Nf3 {[%clk 0:03:00]}  Nf6 {[%clk 0:02:55]} 6. Bb5+ {[%clk 0:03:00]}  Nc6 {[%clk 0:02:54]} 7. O-O {[%clk 0:02:59]}  Be7 {[%clk 0:02:55]} 8. c3 {[%clk 0:02:59]}  O-O {[%clk 0:02:54]} 9. d4 {[%clk 0:03:00]}  cxb4 {[%clk 0:02:50]} 10. axb4 {[%clk 0:02:59]}  Ne4 {[%clk 0:02:49]} 11. Bxc6 {[%clk 0:02:53]}  bxc6 {[%clk 0:02:50]} 12. Ne5 {[%clk 0:02:53]}  Bd6 {[%clk 0:02:43]} 13. f3 {[%clk 0:02:45]}  Nf6 {[%clk 0:02:41]} 14. Re1 {[%clk 0:02:34]}  Qc7 {[%clk 0:02:37]} 15. Nd2 {[%clk 0:02:24]}  Nd7 {[%clk 0:02:29]} 16. f4 {[%clk 0:02:20]}  Nb6 {[%clk 0:02:19]} 17. g3 {[%clk 0:02:14]}  f6 {[%clk 0:02:19]} 18. Nd3 {[%clk 0:02:14]}  Bf5 {[%clk 0:02:16]} 19. Nc5 {[%clk 0:02:14]}  Rfe8 {[%clk 0:02:15]} 20. Nf1 {[%clk 0:02:14]}  Bxc5 {[%clk 0:02:07]} 21. dxc5 {[%clk 0:02:10]}  Nc4 {[%clk 0:02:07]} 22. Be3 {[%clk 0:02:08]}  a5 {[%clk 0:02:04]} 23. Bd4 {[%clk 0:02:06]}  Rxe1 {[%clk 0:01:49]} 24. Qxe1 {[%clk 0:02:06]}  a4 {[%clk 0:01:50]} 25. Nd2 {[%clk 0:02:00]}  Nxd2 {[%clk 0:01:41]} 26. Qxd2 {[%clk 0:01:59]}  a3 {[%clk 0:01:40]} 27. Qe2 {[%clk 0:01:42]}  Qb7 {[%clk 0:01:25]} 28. Rxa3 {[%clk 0:01:37]}  Be4 {[%clk 0:01:22]} 29. Qa2 {[%clk 0:01:27]}  Rxa3 {[%clk 0:01:21]} 30. Qxa3 {[%clk 0:01:28]}  Qb5 {[%clk 0:01:20]} 31. Qa8+ {[%clk 0:01:22]}  Kf7 {[%clk 0:01:19]} 32. Kf2 {[%clk 0:01:11]}  Qd3 {[%clk 0:01:13]} 33. Qxc6 {[%clk 0:01:05]}  Qd2+ {[%clk 0:01:11]} 34. Kf1 {[%clk 0:01:03]}  Bd3+ {[%clk 0:01:11]} 35. Kg1 {[%clk 0:01:03]}  Qe1+ {[%clk 0:01:12]} 36. Kg2 {[%clk 0:01:04]}  Qf1# {[%clk 0:01:12]} 0-1


[Site "https://www.chess.com"]

[Event "Titled Tuesday Blitz July 25 Late 2023"]
[White "Sargsyan, Shant"]
[Black "Leitao, Rafael"]
[WhiteFideId "13306766"]
[BlackFideId "2101246"]
[WhiteElo "2996"]
[BlackElo "2798"]
[Result "1/2-1/2"]
[Round "4"]
[TimeControl "180+2"]
[Date "2023.07.25"]
[WhiteClock "0:00:07"]
[BlackClock "0:00:17"]
[Board "13"]

1. c4 {[%clk 0:03:00]}  Nf6 {[%clk 0:02:58]} 2. g3 {[%clk 0:03:01]}  g6 {[%clk 0:02:58]} 3. Bg2 {[%clk 0:03:01]}  Bg7 {[%clk 0:02:59]} 4. Nc3 {[%clk 0:03:02]}  O-O {[%clk 0:02:58]} 5. Nf3 {[%clk 0:03:02]}  d6 {[%clk 0:02:59]} 6. O-O {[%clk 0:03:03]}  e5 {[%clk 0:02:57]} 7. d3 {[%clk 0:03:04]}  Nc6 {[%clk 0:02:56]} 8. Rb1 {[%clk 0:03:04]}  a5 {[%clk 0:02:55]} 9. a3 {[%clk 0:03:05]}  h6 {[%clk 0:02:53]} 10. b4 {[%clk 0:03:05]}  axb4 {[%clk 0:02:54]} 11. axb4 {[%clk 0:03:06]}  Be6 {[%clk 0:02:54]} 12. b5 {[%clk 0:03:06]}  Ne7 {[%clk 0:02:53]} 13. Nd2 {[%clk 0:02:55]}  Rb8 {[%clk 0:02:50]} 14. Ra1 {[%clk 0:02:55]}  Qc8 {[%clk 0:02:37]} 15. Bb2 {[%clk 0:02:50]}  Bh3 {[%clk 0:02:35]} 16. e4 {[%clk 0:02:50]}  Bxg2 {[%clk 0:02:34]} 17. Kxg2 {[%clk 0:02:51]}  c6 {[%clk 0:02:28]} 18. Qb3 {[%clk 0:02:48]}  Nd7 {[%clk 0:02:24]} 19. Ba3 {[%clk 0:02:47]}  Nc5 {[%clk 0:02:20]} 20. Qc2 {[%clk 0:02:47]}  Qc7 {[%clk 0:02:00]} 21. Rfb1 {[%clk 0:02:45]}  Ne6 {[%clk 0:01:50]} 22. Ne2 {[%clk 0:02:38]}  f5 {[%clk 0:01:41]} 23. f3 {[%clk 0:02:38]}  f4 {[%clk 0:01:32]} 24. bxc6 {[%clk 0:02:33]}  Nxc6 {[%clk 0:01:26]} 25. c5 {[%clk 0:02:19]}  dxc5 {[%clk 0:01:19]} 26. Bxc5 {[%clk 0:02:19]}  Kh7 {[%clk 0:01:08]} 27. Bxf8 {[%clk 0:02:17]}  Rxf8 {[%clk 0:01:04]} 28. Qc4 {[%clk 0:01:59]}  Qe7 {[%clk 0:01:01]} 29. Rb6 {[%clk 0:01:49]}  fxg3 {[%clk 0:00:57]} 30. hxg3 {[%clk 0:01:48]}  Qg5 {[%clk 0:00:49]} 31. Qxe6 {[%clk 0:01:38]}  Qxd2 {[%clk 0:00:48]} 32. Ra2 {[%clk 0:00:52]}  Qe3 {[%clk 0:00:47]} 33. Rb1 {[%clk 0:00:40]}  Qxf3+ {[%clk 0:00:45]} 34. Kg1 {[%clk 0:00:39]}  Qe3+ {[%clk 0:00:42]} 35. Kh1 {[%clk 0:00:37]}  Rf2 {[%clk 0:00:40]} 36. Ng1 {[%clk 0:00:08]}  Nd4 {[%clk 0:00:39]} 37. Qd5 {[%clk 0:00:07]}  Rxa2 {[%clk 0:00:19]} 38. Qxa2 {[%clk 0:00:08]}  Qxd3 {[%clk 0:00:18]} 39. Rxb7 {[%clk 0:00:09]}  Qxe4+ {[%clk 0:00:17]} 40. Qg2 {[%clk 0:00:09]}  Qg4 {[%clk 0:00:16]} 41. Qh3 {[%clk 0:00:09]}  Qe4+ {[%clk 0:00:16]} 42. Qg2 {[%clk 0:00:09]}  Qg4 {[%clk 0:00:17]} 43. Qh3 {[%clk 0:00:07]}  Qe4+ {[%clk 0:00:17]} 44. Qg2 {[%clk 0:00:07]} 1/2-1/2


[Site "https://www.chess.com"]

[Event "Titled Tuesday Blitz July 25 Late 2023"]
[White "Yanchenko, Roman"]
[Black "Matlakov, Maxim"]
[WhiteFideId "4137329"]
[BlackFideId "4168003"]
[WhiteElo "2729"]
[BlackElo "2978"]
[Result "1/2-1/2"]
[Round "4"]
[TimeControl "180+2"]
[Date "2023.07.25"]
[WhiteClock "0:00:18"]
[BlackClock "0:00:23"]
[Board "16"]

1. d4 {[%clk 0:03:00]}  d5 {[%clk 0:02:59]} 2. Nf3 {[%clk 0:03:01]}  Nf6 {[%clk 0:02:59]} 3. c4 {[%clk 0:03:01]}  e6 {[%clk 0:02:58]} 4. Nc3 {[%clk 0:03:02]}  h6 {[%clk 0:02:57]} 5. Bf4 {[%clk 0:03:02]}  Bb4 {[%clk 0:02:55]} 6. e3 {[%clk 0:03:02]}  O-O {[%clk 0:02:53]} 7. Qc2 {[%clk 0:03:00]}  c5 {[%clk 0:02:52]} 8. dxc5 {[%clk 0:03:00]}  Bxc5 {[%clk 0:02:49]} 9. Rd1 {[%clk 0:02:59]}  Qa5 {[%clk 0:02:46]} 10. Be5 {[%clk 0:02:55]}  Nbd7 {[%clk 0:02:44]} 11. Bd4 {[%clk 0:02:45]}  Bxd4 {[%clk 0:02:41]} 12. Nxd4 {[%clk 0:02:46]}  dxc4 {[%clk 0:02:36]} 13. Bxc4 {[%clk 0:02:44]}  Ne5 {[%clk 0:02:36]} 14. Be2 {[%clk 0:02:44]}  Bd7 {[%clk 0:02:33]} 15. O-O {[%clk 0:02:38]}  Rac8 {[%clk 0:02:32]} 16. f4 {[%clk 0:02:05]}  Nc4 {[%clk 0:02:21]} 17. Bxc4 {[%clk 0:02:05]}  Rxc4 {[%clk 0:02:21]} 18. Qd2 {[%clk 0:01:58]}  Qb6 {[%clk 0:02:14]} 19. Rc1 {[%clk 0:01:50]}  Rfc8 {[%clk 0:02:13]} 20. h3 {[%clk 0:01:49]}  a6 {[%clk 0:02:12]} 21. Kh2 {[%clk 0:01:49]}  Be8 {[%clk 0:02:09]} 22. Rfd1 {[%clk 0:01:43]}  Qc7 {[%clk 0:02:09]} 23. Nde2 {[%clk 0:01:36]}  b5 {[%clk 0:02:04]} 24. a3 {[%clk 0:01:25]}  a5 {[%clk 0:02:03]} 25. b3 {[%clk 0:01:05]}  Rc5 {[%clk 0:02:01]} 26. Qd4 {[%clk 0:01:04]}  Qe7 {[%clk 0:01:50]} 27. Qd6 {[%clk 0:00:58]}  Qxd6 {[%clk 0:01:37]} 28. Rxd6 {[%clk 0:00:59]}  b4 {[%clk 0:01:37]} 29. axb4 {[%clk 0:00:59]}  axb4 {[%clk 0:01:38]} 30. Na2 {[%clk 0:01:00]}  Rxc1 {[%clk 0:01:36]} 31. Nexc1 {[%clk 0:00:58]}  Nd5 {[%clk 0:01:35]} 32. Nd3 {[%clk 0:00:52]}  Nxe3 {[%clk 0:01:27]} 33. Naxb4 {[%clk 0:00:50]}  Rb8 {[%clk 0:01:22]} 34. g4 {[%clk 0:00:38]}  Nf1+ {[%clk 0:01:19]} 35. Kg2 {[%clk 0:00:32]}  Nd2 {[%clk 0:01:20]} 36. Nc5 {[%clk 0:00:27]}  Nxb3 {[%clk 0:01:17]} 37. Nba6 {[%clk 0:00:24]}  Nxc5 {[%clk 0:00:35]} 38. Nxb8 {[%clk 0:00:23]}  g5 {[%clk 0:00:33]} 39. fxg5 {[%clk 0:00:20]}  hxg5 {[%clk 0:00:33]} 40. Nc6 {[%clk 0:00:17]}  Bxc6+ {[%clk 0:00:31]} 41. Rxc6 {[%clk 0:00:18]}  Nd3 {[%clk 0:00:31]} 42. Kg3 {[%clk 0:00:17]}  Kg7 {[%clk 0:00:30]} 43. Ra6 {[%clk 0:00:18]}  Kg6 {[%clk 0:00:30]} 44. Ra5 {[%clk 0:00:18]}  Nb4 {[%clk 0:00:27]} 45. Rb5 {[%clk 0:00:17]}  Nd5 {[%clk 0:00:27]} 46. Rb8 {[%clk 0:00:17]}  Nf6 {[%clk 0:00:27]} 47. Rh8 {[%clk 0:00:16]}  Kg7 {[%clk 0:00:25]} 48. Ra8 {[%clk 0:00:16]}  Kg6 {[%clk 0:00:25]} 49. Ra4 {[%clk 0:00:16]}  Nd5 {[%clk 0:00:25]} 50. h4 {[%clk 0:00:17]}  gxh4+ {[%clk 0:00:25]} 51. Kxh4 {[%clk 0:00:17]}  Nf6 {[%clk 0:00:25]} 52. Ra5 {[%clk 0:00:16]}  Nd5 {[%clk 0:00:24]} 53. Rb5 {[%clk 0:00:16]}  Nc3 {[%clk 0:00:23]} 54. Rg5+ {[%clk 0:00:16]}  Kh6 {[%clk 0:00:23]} 55. Rg8 {[%clk 0:00:16]}  Kh7 {[%clk 0:00:23]} 56. Rc8 {[%clk 0:00:16]}  Nd5 {[%clk 0:00:23]} 57. Kg5 {[%clk 0:00:16]}  Kg7 {[%clk 0:00:23]} 58. Ra8 {[%clk 0:00:16]}  Ne7 {[%clk 0:00:22]} 59. Ra7 {[%clk 0:00:16]}  Ng6 {[%clk 0:00:22]} 60. Rb7 {[%clk 0:00:15]}  Ne5 {[%clk 0:00:21]} 61. Ra7 {[%clk 0:00:16]}  Nf3+ {[%clk 0:00:21]} 62. Kf4 {[%clk 0:00:16]}  Nh4 {[%clk 0:00:21]} 63. Ra5 {[%clk 0:00:15]}  Ng6+ {[%clk 0:00:21]} 64. Kg5 {[%clk 0:00:15]}  Ne7 {[%clk 0:00:21]} 65. Ra7 {[%clk 0:00:15]}  Nc6 {[%clk 0:00:21]} 66. Ra8 {[%clk 0:00:15]}  Ne7 {[%clk 0:00:21]} 67. Kh4 {[%clk 0:00:15]}  Ng6+ {[%clk 0:00:20]} 68. Kh5 {[%clk 0:00:15]}  Ne7 {[%clk 0:00:21]} 69. g5 {[%clk 0:00:16]}  Ng6 {[%clk 0:00:21]} 70. Kg4 {[%clk 0:00:16]}  Ne5+ {[%clk 0:00:21]} 71. Kh5 {[%clk 0:00:16]}  Ng6 {[%clk 0:00:22]} 72. Ra5 {[%clk 0:00:17]}  Nf4+ {[%clk 0:00:21]} 73. Kg4 {[%clk 0:00:16]}  Ng6 {[%clk 0:00:22]} 74. Kh5 {[%clk 0:00:16]}  Nf4+ {[%clk 0:00:22]} 75. Kg4 {[%clk 0:00:17]}  Ng6 {[%clk 0:00:23]} 76. Kh5 {[%clk 0:00:18]} 1/2-1/2


[Site "https://www.chess.com"]

[Event "Titled Tuesday Blitz July 25 Late 2023"]
[White "Danielyan, Vahe"]
[Black "Carlsen, Magnus"]
[WhiteFideId "13304828"]
[BlackFideId "1503014"]
[WhiteElo "2644"]
[BlackElo "3254"]
[Result "0-1"]
[Round "4"]
[TimeControl "180+2"]
[Date "2023.07.25"]
[WhiteClock "0:00:26"]
[BlackClock "0:01:31"]
[Board "21"]

1. e4 {[%clk 0:02:59]}  a5 {[%clk 0:02:59]} 2. d4 {[%clk 0:02:57]}  h5 {[%clk 0:02:58]} 3. Nc3 {[%clk 0:02:57]}  e6 {[%clk 0:02:57]} 4. Nf3 {[%clk 0:02:55]}  Bb4 {[%clk 0:02:56]} 5. Bd3 {[%clk 0:02:55]}  d6 {[%clk 0:02:53]} 6. a3 {[%clk 0:02:51]}  Bxc3+ {[%clk 0:02:53]} 7. bxc3 {[%clk 0:02:52]}  b6 {[%clk 0:02:53]} 8. Bg5 {[%clk 0:02:49]}  f6 {[%clk 0:02:53]} 9. Bd2 {[%clk 0:02:48]}  e5 {[%clk 0:02:46]} 10. Nh4 {[%clk 0:02:42]}  Ne7 {[%clk 0:02:44]} 11. h3 {[%clk 0:02:33]}  g5 {[%clk 0:02:41]} 12. Nf3 {[%clk 0:02:33]}  h4 {[%clk 0:02:38]} 13. Nh2 {[%clk 0:02:27]}  Be6 {[%clk 0:02:33]} 14. Ng4 {[%clk 0:02:27]}  Nd7 {[%clk 0:02:31]} 15. Qf3 {[%clk 0:02:26]}  Ng6 {[%clk 0:02:29]} 16. d5 {[%clk 0:02:23]}  Bxg4 {[%clk 0:02:26]} 17. Qxg4 {[%clk 0:02:22]}  Nc5 {[%clk 0:02:21]} 18. Bb5+ {[%clk 0:02:21]}  Kf7 {[%clk 0:02:20]} 19. g3 {[%clk 0:02:14]}  Qc8 {[%clk 0:02:19]} 20. Qxc8 {[%clk 0:02:02]}  Raxc8 {[%clk 0:02:18]} 21. Bd3 {[%clk 0:01:56]}  g4 {[%clk 0:02:17]} 22. gxh4 {[%clk 0:01:43]}  Rxh4 {[%clk 0:02:15]} 23. Ke2 {[%clk 0:01:41]}  Rch8 {[%clk 0:02:13]} 24. Rag1 {[%clk 0:01:32]}  Rxh3 {[%clk 0:02:10]} 25. Rxh3 {[%clk 0:01:30]}  gxh3 {[%clk 0:02:11]} 26. Kf3 {[%clk 0:01:26]}  h2 {[%clk 0:01:38]} 27. Rh1 {[%clk 0:01:26]}  Rh3+ {[%clk 0:01:38]} 28. Kg2 {[%clk 0:01:25]}  Nxd3 {[%clk 0:01:38]} 29. cxd3 {[%clk 0:00:56]}  Rxd3 {[%clk 0:01:38]} 30. Be3 {[%clk 0:00:56]}  f5 {[%clk 0:01:38]} 31. exf5 {[%clk 0:00:54]}  Nh4+ {[%clk 0:01:38]} 32. Kxh2 {[%clk 0:00:45]}  Nxf5 {[%clk 0:01:38]} 33. Kg2 {[%clk 0:00:32]}  Nxe3+ {[%clk 0:01:38]} 34. fxe3 {[%clk 0:00:32]}  Rxc3 {[%clk 0:01:38]} 35. Kf3 {[%clk 0:00:32]}  Ke7 {[%clk 0:01:37]} 36. a4 {[%clk 0:00:33]}  Rc4 {[%clk 0:01:36]} 37. Rh7+ {[%clk 0:00:25]}  Kd8 {[%clk 0:01:36]} 38. e4 {[%clk 0:00:26]}  Rxa4 {[%clk 0:01:31]} 39. Kg4 {[%clk 0:00:26]} 0-1


[Site "https://www.chess.com"]